[Event "Live Chess"]
[Site "Chess.com"]
[Date "2024.06.02"]
[Round "-"]
[White "elephantgerrald"]
[Black "f4nomore"]
[Result "0-1"]
[WhiteElo "854"]
[BlackElo "1275"]
[TimeControl "300"]
[EndTime "4:20:57 PDT"]
[Termination "f4nomore won by checkmate"]

1. e4 {[%clk 0:04:57.7]} 1... g6 {[%clk 0:04:59.4]} 2. Nf3 {[%clk 0:04:56.6]}
2... Bg7 {[%clk 0:04:58.2]} 3. g3 {[%clk 0:04:54.5]} 3... d6 {[%clk 0:04:57.4]}
4. Bg2 {[%clk 0:04:53.7]} 4... Bd7 {[%clk 0:04:54.5]} 5. O-O {[%clk 0:04:53.3]}
5... Nf6 {[%clk 0:04:49]} 6. Nc3 {[%clk 0:04:51.8]} 6... O-O {[%clk 0:04:47.2]}
7. d3 {[%clk 0:04:51.7]} 7... c5 {[%clk 0:04:45.6]} 8. Bf4 {[%clk 0:04:49.7]}
8... Nc6 {[%clk 0:04:44.3]} 9. a3 {[%clk 0:04:44.8]} 9... Rc8 {[%clk 0:04:42.2]}
10. Nb5 {[%clk 0:04:41.7]} 10... a6 {[%clk 0:04:41]} 11. Nc3 {[%clk 0:04:38.5]}
11... b5 {[%clk 0:04:39.4]} 12. Rb1 {[%clk 0:04:35.7]} 12... e5 {[%clk
0:04:34.8]} 13. Bg5 {[%clk 0:04:34]} 13... h6 {[%clk 0:04:33.5]} 14. Bxf6 {[%clk
0:04:31.9]} 14... Qxf6 {[%clk 0:04:30.8]} 15. b4 {[%clk 0:04:29.6]} 15... cxb4
{[%clk 0:04:24.6]} 16. axb4 {[%clk 0:04:26.1]} 16... Ra8 {[%clk 0:04:16.3]} 17.
Nd5 {[%clk 0:04:24.7]} 17... Qd8 {[%clk 0:04:12.5]} 18. Nb6 {[%clk 0:04:22.4]}
18... Qxb6 {[%clk 0:04:08.7]} 19. c3 {[%clk 0:04:17.1]} 19... Qc7 {[%clk
0:04:04.5]} 20. Ra1 {[%clk 0:04:15.3]} 20... f5 {[%clk 0:04:01]} 21. Re1 {[%clk
0:04:11.1]} 21... f4 {[%clk 0:03:56.1]} 22. Nh4 {[%clk 0:04:02.1]} 22... g5
{[%clk 0:03:49.1]} 23. Nf3 {[%clk 0:03:51]} 23... fxg3 {[%clk 0:03:46.2]} 24.
fxg3 {[%clk 0:03:47.8]} 24... Bg4 {[%clk 0:03:44.3]} 25. Rf1 {[%clk 0:03:45.6]}
25... Qd7 {[%clk 0:03:36.6]} 26. h3 {[%clk 0:03:42.5]} 26... Bh5 {[%clk
0:03:32.9]} 27. g4 {[%clk 0:03:24.7]} 27... Bg6 {[%clk 0:03:31.2]} 28. h4 {[%clk
0:03:20.2]} 28... Qe7 {[%clk 0:03:24.4]} 29. Qe1 {[%clk 0:03:09.2]} 29... Rf4
{[%clk 0:03:09.6]} 30. Bh3 {[%clk 0:02:57.6]} 30... Qd7 {[%clk 0:02:59.5]} 31.
Qb1 {[%clk 0:02:40.1]} 31... d5 {[%clk 0:02:54.6]} 32. exd5 {[%clk 0:02:38.2]}
32... Qxd5 {[%clk 0:02:52.4]} 33. Qd1 {[%clk 0:02:26.6]} 33... Bxd3 {[%clk
0:02:34.9]} 34. Ra3 {[%clk 0:01:58.2]} 34... Bc4 {[%clk 0:02:16.7]} 35. Qxd5+
{[%clk 0:01:31]} 35... Bxd5 {[%clk 0:02:13.2]} 36. c4 {[%clk 0:01:27.4]} 36...
Bxc4 {[%clk 0:02:09.9]} 37. Rc1 {[%clk 0:01:25.5]} 37... Nd4 {[%clk 0:02:00.2]}
38. Nxd4 {[%clk 0:01:22.7]} 38... exd4 {[%clk 0:01:58.5]} 39. hxg5 {[%clk
0:01:22]} 39... hxg5 {[%clk 0:01:55.7]} 40. Bg2 {[%clk 0:01:20.3]} 40... Rd8
{[%clk 0:01:50.5]} 41. Rxc4 {[%clk 0:01:15.3]} 41... bxc4 {[%clk 0:01:47.9]} 42.
Bd5+ {[%clk 0:01:14.3]} 42... Rxd5 {[%clk 0:01:43.7]} 43. Rxa6 {[%clk
0:01:12.8]} 43... d3 {[%clk 0:01:41]} 44. Ra8+ {[%clk 0:01:11.3]} 44... Kh7
{[%clk 0:01:39.4]} 45. Ra2 {[%clk 0:01:06.7]} 45... d2 {[%clk 0:01:37.8]} 46.
Kg2 {[%clk 0:01:02.5]} 46... d1=Q {[%clk 0:01:35.1]} 47. Kh3 {[%clk 0:01:00.5]}
47... Qxg4+ {[%clk 0:01:33.3]} 48. Kh2 {[%clk 0:00:58.4]} 48... Qh4+ {[%clk
0:01:29.5]} 49. Kg2 {[%clk 0:00:56.6]} 49... Rd3 {[%clk 0:01:26]} 50. Rc2 {[%clk
0:00:51.4]} 50... Qg3+ {[%clk 0:01:22.7]} 51. Kh1 {[%clk 0:00:49.9]} 51... Qh3+
{[%clk 0:01:18.6]} 52. Kg1 {[%clk 0:00:48.4]} 52... Rg3+ {[%clk 0:01:16.9]} 53.
Rg2 {[%clk 0:00:44.7]} 53... Qxg2# {[%clk 0:01:15.5]} 0-1

[Event "Live Chess"]
[Site "Chess.com"]
[Date "2024.06.02"]
[Round "-"]
[White "Duke_of_Bebington"]
[Black "Tatarinov_Maxim"]
[Result "0-1"]
[WhiteElo "1636"]
[BlackElo "2295"]
[TimeControl "300"]
[EndTime "4:21:07 PDT"]
[Termination "Tatarinov_Maxim won by resignation"]

1. e4 {[%clk 0:04:48.9]} 1... c5 {[%clk 0:04:58]} 2. Nf3 {[%clk 0:04:45.6]} 2...
Nc6 {[%clk 0:04:57.3]} 3. c3 {[%clk 0:04:44.8]} 3... d6 {[%clk 0:04:55.7]} 4. d4
{[%clk 0:04:44.3]} 4... Nf6 {[%clk 0:04:54.4]} 5. e5 {[%clk 0:04:33.3]} 5...
dxe5 {[%clk 0:04:52.7]} 6. dxe5 {[%clk 0:04:32.4]} 6... Qxd1+ {[%clk 0:04:51]}
7. Kxd1 {[%clk 0:04:31.3]} 7... Ng4 {[%clk 0:04:50.2]} 8. Bf4 {[%clk 0:04:27.9]}
8... Nxf2+ {[%clk 0:04:48.8]} 9. Kd2 {[%clk 0:04:23]} 9... Nxh1 {[%clk
0:04:48.7]} 10. Na3 {[%clk 0:04:21.1]} 10... a6 {[%clk 0:04:39.7]} 11. Nc4
{[%clk 0:04:18.2]} 11... Be6 {[%clk 0:04:32.6]} 12. Nb6 {[%clk 0:04:16.5]} 12...
Rd8+ {[%clk 0:04:31]} 13. Kc2 {[%clk 0:04:15.7]} 13... Nf2 {[%clk 0:04:28.8]}
0-1

[Event "Live Chess"]
[Site "Chess.com"]
[Date "2024.06.02"]
[Round "-"]
[White "slava_ukr"]
[Black "r0ad_t0-gm"]
[Result "1-0"]
[WhiteElo "2411"]
[BlackElo "2266"]
[TimeControl "300"]
[EndTime "4:21:41 PDT"]
[Termination "slava_ukr won by resignation"]

1. e4 {[%clk 0:04:57.5]} 1... c5 {[%clk 0:04:58.9]} 2. Nc3 {[%clk 0:04:56.6]}
2... Nc6 {[%clk 0:04:57.8]} 3. f4 {[%clk 0:04:56.2]} 3... g6 {[%clk 0:04:56.9]}
4. Nf3 {[%clk 0:04:55.8]} 4... Bg7 {[%clk 0:04:56.5]} 5. Bc4 {[%clk 0:04:55.1]}
5... e6 {[%clk 0:04:55.5]} 6. f5 {[%clk 0:04:54.4]} 6... gxf5 {[%clk 0:04:54.4]}
7. d3 {[%clk 0:04:53.2]} 7... Nge7 {[%clk 0:04:52.1]} 8. O-O {[%clk 0:04:52.1]}
8... fxe4 {[%clk 0:04:48.7]} 9. dxe4 {[%clk 0:04:48.3]} 9... O-O {[%clk
0:04:45.7]} 10. Bg5 {[%clk 0:04:46.7]} 10... a6 {[%clk 0:04:29.7]} 11. a4 {[%clk
0:04:38.3]} 11... b6 {[%clk 0:04:28]} 12. Qd6 {[%clk 0:04:28.1]} 12... h6 {[%clk
0:04:18.5]} 13. Bh4 {[%clk 0:04:23.5]} 13... Bb7 {[%clk 0:04:14.3]} 14. Rad1
{[%clk 0:04:20]} 14... Re8 {[%clk 0:03:40.6]} 15. Qxd7 {[%clk 0:03:55.8]} 15...
Qxd7 {[%clk 0:03:40.5]} 16. Rxd7 {[%clk 0:03:54.8]} 16... Bc8 {[%clk 0:03:39.7]}
17. Rd2 {[%clk 0:03:45.2]} 17... Nd4 {[%clk 0:03:38.6]} 18. Nxd4 {[%clk
0:03:29.7]} 18... cxd4 {[%clk 0:03:33.9]} 19. Ne2 {[%clk 0:03:28.4]} 19... Bb7
{[%clk 0:03:29.7]} 20. Nxd4 {[%clk 0:03:16.5]} 20... Bxe4 {[%clk 0:03:26]} 21.
c3 {[%clk 0:03:08.6]} 21... Ng6 {[%clk 0:03:19.4]} 22. Bg3 {[%clk 0:03:04.1]}
22... Red8 {[%clk 0:03:13.2]} 23. Rfd1 {[%clk 0:02:23.6]} 23... Rd7 {[%clk
0:02:52.7]} 24. Nf3 {[%clk 0:02:01.5]} 24... Rxd2 {[%clk 0:02:38.2]} 25. Rxd2
{[%clk 0:02:00]} 25... Bxf3 {[%clk 0:02:25.9]} 26. gxf3 {[%clk 0:01:58.9]} 26...
Ne5 {[%clk 0:02:25.1]} 27. Be2 {[%clk 0:01:54.6]} 27... b5 {[%clk 0:02:20.5]}
28. axb5 {[%clk 0:01:42.7]} 28... axb5 {[%clk 0:02:20.4]} 29. Bxe5 {[%clk
0:01:41.7]} 29... Bxe5 {[%clk 0:02:18.9]} 30. Bxb5 {[%clk 0:01:40.9]} 30... Bf4
{[%clk 0:02:05.9]} 31. Rc2 {[%clk 0:01:36.6]} 31... Ra1+ {[%clk 0:01:59.8]} 32.
Kg2 {[%clk 0:01:33.5]} 32... f5 {[%clk 0:01:51.9]} 33. b4 {[%clk 0:01:32.4]}
33... Rc1 {[%clk 0:01:38.2]} 34. Rxc1 {[%clk 0:01:29.3]} 34... Bxc1 {[%clk
0:01:38.1]} 35. Bd7 {[%clk 0:01:20.4]} 35... Kf7 {[%clk 0:01:37]} 36. b5 {[%clk
0:01:18.7]} 36... Be3 {[%clk 0:01:35.4]} 37. Kf1 {[%clk 0:01:15.8]} 37... Ke7
{[%clk 0:01:32.8]} 38. Bc6 {[%clk 0:01:15]} 38... Kd6 {[%clk 0:01:31.6]} 39. Ke2
{[%clk 0:01:14.1]} 39... Bg1 {[%clk 0:01:30.8]} 40. h3 {[%clk 0:01:13.3]} 40...
Kc5 {[%clk 0:01:29.4]} 41. Kd3 {[%clk 0:01:12.1]} 41... Bf2 {[%clk 0:01:18.6]}
42. c4 {[%clk 0:01:11]} 42... Bg1 {[%clk 0:01:17.5]} 43. Kc3 {[%clk 0:01:06.7]}
43... Bd4+ {[%clk 0:01:16]} 44. Kb3 {[%clk 0:01:05.1]} 44... Be3 {[%clk
0:01:14.2]} 45. Ka4 {[%clk 0:01:02.5]} 45... Bd2 {[%clk 0:01:13]} 46. Bd7 {[%clk
0:00:58.3]} 46... Kd6 {[%clk 0:01:11.5]} 47. Bc8 {[%clk 0:00:57]} 47... f4
{[%clk 0:01:09.4]} 48. b6 {[%clk 0:00:55.7]} 48... Kc5 {[%clk 0:00:53.1]} 49. b7
{[%clk 0:00:54.2]} 1-0

[Event "Live Chess"]
[Site "Chess.com"]
[Date "2024.06.02"]
[Round "-"]
[White "KyryloPoluliakh"]
[Black "JohanKjeldahl"]
[Result "0-1"]
[WhiteElo "1530"]
[BlackElo "1793"]
[TimeControl "300"]
[EndTime "4:21:52 PDT"]
[Termination "JohanKjeldahl won by checkmate"]

1. c4 {[%clk 0:04:58.2]} 1... e5 {[%clk 0:04:57.8]} 2. Nc3 {[%clk 0:04:55.1]}
2... Nf6 {[%clk 0:04:56.6]} 3. g3 {[%clk 0:04:54.5]} 3... Nc6 {[%clk 0:04:54.9]}
4. Bg2 {[%clk 0:04:53.8]} 4... d6 {[%clk 0:04:53.7]} 5. e3 {[%clk 0:04:51.2]}
5... g6 {[%clk 0:04:52.6]} 6. Nge2 {[%clk 0:04:50.7]} 6... Bg7 {[%clk
0:04:50.8]} 7. d4 {[%clk 0:04:49.9]} 7... exd4 {[%clk 0:04:49.7]} 8. exd4 {[%clk
0:04:49.4]} 8... O-O {[%clk 0:04:47.1]} 9. O-O {[%clk 0:04:48.3]} 9... Bg4
{[%clk 0:04:45.8]} 10. Be3 {[%clk 0:04:42]} 10... a6 {[%clk 0:04:44.5]} 11. Qd2
{[%clk 0:04:38.3]} 11... Re8 {[%clk 0:04:42.7]} 12. a3 {[%clk 0:04:33.1]} 12...
Qd7 {[%clk 0:04:27.4]} 13. Rfe1 {[%clk 0:04:09.7]} 13... Re7 {[%clk 0:04:22.1]}
14. b4 {[%clk 0:04:01.4]} 14... Rae8 {[%clk 0:04:20.8]} 15. b5 {[%clk
0:03:58.8]} 15... axb5 {[%clk 0:04:18.8]} 16. Nxb5 {[%clk 0:03:52]} 16... Ne4
{[%clk 0:04:05.8]} 17. Qc2 {[%clk 0:03:43.8]} 17... Bf5 {[%clk 0:04:02.9]} 18.
Qb2 {[%clk 0:03:37]} 18... Nf6 {[%clk 0:03:33]} 19. Nbc3 {[%clk 0:03:27.4]}
19... Ng4 {[%clk 0:03:30.7]} 20. Nd5 {[%clk 0:03:19.7]} 20... Rxe3 {[%clk
0:03:18.5]} 21. Nxe3 {[%clk 0:03:13.4]} 21... Nxe3 {[%clk 0:03:16.9]} 22. fxe3
{[%clk 0:03:12.8]} 22... Rxe3 {[%clk 0:03:14.1]} 23. Qxb7 {[%clk 0:03:05.8]}
23... Nxd4 {[%clk 0:03:10.4]} 24. Qa8+ {[%clk 0:02:56.1]} 24... Re8 {[%clk
0:03:05.9]} 25. Qd5 {[%clk 0:02:31.3]} 25... Nxe2+ {[%clk 0:03:03.6]} 26. Rxe2
{[%clk 0:02:25.7]} 26... Rxe2 {[%clk 0:03:01.7]} 27. Rc1 {[%clk 0:02:16.3]}
27... Qe8 {[%clk 0:02:48.6]} 28. Qa5 {[%clk 0:02:06.3]} 28... Qe3+ {[%clk
0:02:45.6]} 29. Kh1 {[%clk 0:01:59.1]} 29... Qxc1+ {[%clk 0:02:44.4]} 30. Bf1
{[%clk 0:01:57.1]} 30... Qxf1# {[%clk 0:02:42]} 0-1

[Event "Live Chess"]
[Site "Chess.com"]
[Date "2024.06.02"]
[Round "-"]
[White "RichardABates"]
[Black "Silverback7829"]
[Result "1-0"]
[WhiteElo "2327"]
[BlackElo "880"]
[TimeControl "300"]
[EndTime "4:21:55 PDT"]
[Termination "RichardABates won by checkmate"]

1. d4 {[%clk 0:04:57.6]} 1... d5 {[%clk 0:04:58.4]} 2. c4 {[%clk 0:04:56.2]}
2... dxc4 {[%clk 0:04:54.6]} 3. e4 {[%clk 0:04:55]} 3... Nc6 {[%clk 0:04:52.6]}
4. Nf3 {[%clk 0:04:53]} 4... Bg4 {[%clk 0:04:48.7]} 5. Bxc4 {[%clk 0:04:49.7]}
5... e6 {[%clk 0:04:42.5]} 6. Be3 {[%clk 0:04:46.7]} 6... Bxf3 {[%clk
0:04:38.9]} 7. gxf3 {[%clk 0:04:44]} 7... Nf6 {[%clk 0:04:34.9]} 8. Nc3 {[%clk
0:04:41.9]} 8... Bb4 {[%clk 0:04:27.2]} 9. Rg1 {[%clk 0:04:37.9]} 9... g6 {[%clk
0:04:21.3]} 10. Qb3 {[%clk 0:04:34.9]} 10... O-O {[%clk 0:04:14.4]} 11. Bg5
{[%clk 0:04:28.7]} 11... Qd7 {[%clk 0:04:00.7]} 12. Bxf6 {[%clk 0:04:26.5]}
12... Nxd4 {[%clk 0:03:47.3]} 13. Bxd4 {[%clk 0:04:22.4]} 13... Qxd4 {[%clk
0:03:41.1]} 14. Rd1 {[%clk 0:04:20.4]} 14... Qe5 {[%clk 0:03:32.1]} 15. Qxb4
{[%clk 0:04:17.5]} 15... b6 {[%clk 0:03:27.6]} 16. Qe7 {[%clk 0:04:02.5]} 16...
Qxh2 {[%clk 0:03:23.2]} 17. Ke2 {[%clk 0:04:00.3]} 17... Qh5 {[%clk 0:03:11.1]}
18. Rh1 {[%clk 0:03:54.3]} 18... Qe5 {[%clk 0:02:59.4]} 19. Qh4 {[%clk
0:03:40.9]} 19... Qh5 {[%clk 0:02:44.9]} 20. Qxh5 {[%clk 0:03:39.3]} 20... gxh5
{[%clk 0:02:43]} 21. Rxh5 {[%clk 0:03:38.2]} 21... Kh8 {[%clk 0:02:33.6]} 22. e5
{[%clk 0:03:34.7]} 22... Rg8 {[%clk 0:02:26.3]} 23. Ne4 {[%clk 0:03:32.6]} 23...
a5 {[%clk 0:02:16.2]} 24. Nf6 {[%clk 0:03:30.8]} 24... Rg7 {[%clk 0:02:10.3]}
25. Rdh1 {[%clk 0:03:27.7]} 25... Rd8 {[%clk 0:02:04.1]} 26. Rxh7+ {[%clk
0:03:21.5]} 26... Rxh7 {[%clk 0:01:50.3]} 27. Rxh7# {[%clk 0:03:19.3]} 1-0

[Event "Live Chess"]
[Site "Chess.com"]
[Date "2024.06.02"]
[Round "-"]
[White "GwaryTek"]
[Black "booktrunk"]
[Result "1-0"]
[WhiteElo "1840"]
[BlackElo "1491"]
[TimeControl "300"]
[EndTime "4:21:59 PDT"]
[Termination "GwaryTek won by resignation"]

1. d4 {[%clk 0:04:56]} 1... b6 {[%clk 0:04:50.6]} 2. c4 {[%clk 0:04:54.3]} 2...
Bb7 {[%clk 0:04:48.7]} 3. Nc3 {[%clk 0:04:54.2]} 3... h6 {[%clk 0:04:46.3]} 4.
e4 {[%clk 0:04:53.1]} 4... e6 {[%clk 0:04:45.2]} 5. f4 {[%clk 0:04:52.7]} 5...
Bb4 {[%clk 0:04:43.3]} 6. Bd3 {[%clk 0:04:50]} 6... Bxc3+ {[%clk 0:04:41.9]} 7.
bxc3 {[%clk 0:04:48.5]} 7... Nf6 {[%clk 0:04:41.4]} 8. Qe2 {[%clk 0:04:46]} 8...
a6 {[%clk 0:04:38.9]} 9. Nf3 {[%clk 0:04:44.5]} 9... O-O {[%clk 0:04:37.3]} 10.
e5 {[%clk 0:04:44]} 10... Nh7 {[%clk 0:04:32.1]} 11. O-O {[%clk 0:04:41.7]}
11... g6 {[%clk 0:04:28.1]} 12. Kh1 {[%clk 0:04:37.5]} 12... f6 {[%clk
0:04:25.5]} 13. Bxg6 {[%clk 0:04:35.4]} 13... f5 {[%clk 0:04:22.2]} 14. Bxh7+
{[%clk 0:04:30.8]} 14... Kxh7 {[%clk 0:04:20.5]} 15. Be3 {[%clk 0:04:27.5]}
15... Rg8 {[%clk 0:04:19]} 16. Bf2 {[%clk 0:04:26.2]} 16... d6 {[%clk
0:04:12.3]} 17. Bh4 {[%clk 0:04:18.2]} 17... Qe8 {[%clk 0:04:04.8]} 18. Bf6
{[%clk 0:04:16]} 18... Qg6 {[%clk 0:03:59.3]} 19. Rae1 {[%clk 0:04:10.4]} 19...
Nd7 {[%clk 0:03:51.1]} 20. Bh4 {[%clk 0:04:03.8]} 20... dxe5 {[%clk 0:03:48.2]}
21. fxe5 {[%clk 0:03:54.8]} 21... Qh5 {[%clk 0:03:40.6]} 22. Bf2 {[%clk
0:03:05.6]} 22... Qg6 {[%clk 0:03:35.7]} 23. Rg1 {[%clk 0:02:41]} 23... Rg7
{[%clk 0:03:30.2]} 24. Rd1 {[%clk 0:01:44]} 24... Rag8 {[%clk 0:03:27.2]} 25. d5
{[%clk 0:01:40.2]} 25... exd5 {[%clk 0:03:24.6]} 26. cxd5 {[%clk 0:01:39.6]}
26... Qg4 {[%clk 0:03:12.8]} 27. Rd4 {[%clk 0:01:30]} 27... Qg6 {[%clk
0:03:07.5]} 28. c4 {[%clk 0:01:19.7]} 28... c6 {[%clk 0:03:03.4]} 29. dxc6
{[%clk 0:01:04.7]} 29... Bxc6 {[%clk 0:03:01.5]} 30. Rd6 {[%clk 0:01:03.9]}
30... Bxf3 {[%clk 0:02:48.1]} 31. Qxf3 {[%clk 0:01:03.8]} 31... Qe8 {[%clk
0:02:39]} 32. Qxf5+ {[%clk 0:00:59.2]} 32... Kh8 {[%clk 0:02:30.4]} 33. Rxh6+
{[%clk 0:00:54.4]} 1-0

[Event "Live Chess"]
[Site "Chess.com"]
[Date "2024.06.02"]
[Round "-"]
[White "ProfPoisson"]
[Black "FlyingChessKestrel13"]
[Result "0-1"]
[WhiteElo "1317"]
[BlackElo "2078"]
[TimeControl "300"]
[EndTime "4:22:17 PDT"]
[Termination "FlyingChessKestrel13 won on time"]

1. e4 {[%clk 0:04:55]} 1... c5 {[%clk 0:04:58.7]} 2. Nc3 {[%clk 0:04:52.6]} 2...
e6 {[%clk 0:04:57.1]} 3. f4 {[%clk 0:04:50.4]} 3... a6 {[%clk 0:04:55.1]} 4. Nf3
{[%clk 0:04:42.7]} 4... Nc6 {[%clk 0:04:53.2]} 5. a4 {[%clk 0:04:40.8]} 5...
Nge7 {[%clk 0:04:51.4]} 6. Bc4 {[%clk 0:04:37.5]} 6... Ng6 {[%clk 0:04:48]} 7.
d3 {[%clk 0:04:32.5]} 7... Be7 {[%clk 0:04:46.5]} 8. O-O {[%clk 0:04:29.8]} 8...
O-O {[%clk 0:04:44.8]} 9. f5 {[%clk 0:04:20]} 9... exf5 {[%clk 0:04:42.7]} 10.
exf5 {[%clk 0:04:18.5]} 10... Nge5 {[%clk 0:04:41.6]} 11. Nxe5 {[%clk
0:04:09.8]} 11... Nxe5 {[%clk 0:04:39.8]} 12. Bb3 {[%clk 0:03:57.7]} 12... Bf6
{[%clk 0:04:37.9]} 13. Nd5 {[%clk 0:03:50.1]} 13... b6 {[%clk 0:04:34.9]} 14.
Qh5 {[%clk 0:03:40.3]} 14... Bb7 {[%clk 0:04:31.8]} 15. Bg5 {[%clk 0:03:24]}
15... Bxg5 {[%clk 0:04:18.6]} 16. f6 {[%clk 0:03:19.4]} 16... g6 {[%clk
0:04:11.7]} 17. Qxg5 {[%clk 0:03:16.9]} 17... Kh8 {[%clk 0:04:06.5]} 18. Qh6
{[%clk 0:03:13.4]} 18... Rg8 {[%clk 0:04:04.3]} 19. Ne7 {[%clk 0:03:10.5]} 19...
d5 {[%clk 0:03:54.4]} 20. Rae1 {[%clk 0:02:47.7]} 20... Ng4 {[%clk 0:03:28.8]}
21. Qg5 {[%clk 0:02:42]} 21... Qd7 {[%clk 0:03:20.7]} 22. Nxg8 {[%clk
0:02:31.9]} 22... Rxg8 {[%clk 0:03:18.2]} 23. Re7 {[%clk 0:02:26.1]} 23... Qc8
{[%clk 0:03:08.3]} 24. Rxf7 {[%clk 0:02:12.4]} 24... c4 {[%clk 0:03:04.6]} 25.
dxc4 {[%clk 0:01:55]} 25... Qc5+ {[%clk 0:03:02.3]} 26. Kh1 {[%clk 0:01:40.2]}
26... Nf2+ {[%clk 0:03:01]} 27. Rxf2 {[%clk 0:01:37]} 27... Qxf2 {[%clk
0:02:59.8]} 28. Rxh7+ {[%clk 0:01:35]} 28... Kxh7 {[%clk 0:02:58.3]} 29. h4
{[%clk 0:01:18.1]} 29... dxc4 {[%clk 0:02:52.8]} 30. Bxc4 {[%clk 0:01:15.5]}
30... Qf5 {[%clk 0:02:23.3]} 31. Bxg8+ {[%clk 0:01:12.3]} 31... Kxg8 {[%clk
0:02:22]} 32. Qxf5 {[%clk 0:00:41.4]} 32... gxf5 {[%clk 0:02:19.6]} 33. Kh2
{[%clk 0:00:36.5]} 33... Kf7 {[%clk 0:02:18.1]} 34. Kg3 {[%clk 0:00:36]} 34...
Kxf6 {[%clk 0:02:17.1]} 35. Kf4 {[%clk 0:00:35.3]} 35... Bxg2 {[%clk 0:02:15.1]}
36. b4 {[%clk 0:00:29.8]} 36... Be4 {[%clk 0:02:11.1]} 37. c4 {[%clk 0:00:28.1]}
37... Bc2 {[%clk 0:02:08.8]} 38. a5 {[%clk 0:00:23.3]} 38... bxa5 {[%clk
0:02:01.2]} 39. bxa5 {[%clk 0:00:22]} 39... Bb3 {[%clk 0:01:58.5]} 40. c5 {[%clk
0:00:20.4]} 40... Ke6 {[%clk 0:01:55.7]} 41. h5 {[%clk 0:00:17.1]} 41... Kd7
{[%clk 0:01:51.5]} 42. h6 {[%clk 0:00:16.8]} 42... Bg8 {[%clk 0:01:49.9]} 43.
Kxf5 {[%clk 0:00:15.5]} 43... Bh7+ {[%clk 0:01:48.5]} 44. Kf6 {[%clk 0:00:15.1]}
44... Kc6 {[%clk 0:01:47.3]} 45. Kg7 {[%clk 0:00:14.8]} 45... Bb1 {[%clk
0:01:46.4]} 46. h7 {[%clk 0:00:13.8]} 46... Bxh7 {[%clk 0:01:45.1]} 47. Kxh7
{[%clk 0:00:13.5]} 47... Kxc5 {[%clk 0:01:45]} 48. Kg6 {[%clk 0:00:13.4]} 48...
Kb5 {[%clk 0:01:44.3]} 49. Kf5 {[%clk 0:00:13.3]} 49... Kxa5 {[%clk 0:01:43.7]}
50. Ke4 {[%clk 0:00:13.2]} 50... Kb4 {[%clk 0:01:43.2]} 51. Kd3 {[%clk
0:00:13.1]} 51... Kb3 {[%clk 0:01:41.6]} 52. Kd2 {[%clk 0:00:10.7]} 52... Kb2
{[%clk 0:01:40.2]} 53. Kd3 {[%clk 0:00:09.7]} 53... a5 {[%clk 0:01:39.6]} 54.
Kc4 {[%clk 0:00:09.6]} 54... a4 {[%clk 0:01:38.6]} 55. Kb4 {[%clk 0:00:09.2]}
55... a3 {[%clk 0:01:37.8]} 0-1

[Event "Live Chess"]
[Site "Chess.com"]
[Date "2024.06.02"]
[Round "-"]
[White "lateforthesky"]
[Black "friarnator"]
[Result "0-1"]
[WhiteElo "2069"]
[BlackElo "2183"]
[TimeControl "300"]
[EndTime "4:22:18 PDT"]
[Termination "friarnator won by resignation"]

1. e4 {[%clk 0:04:54.5]} 1... c6 {[%clk 0:04:59.2]} 2. Nf3 {[%clk 0:04:52.6]}
2... d5 {[%clk 0:04:59.1]} 3. exd5 {[%clk 0:04:52]} 3... cxd5 {[%clk 0:04:59]}
4. Ne5 {[%clk 0:04:51.5]} 4... a6 {[%clk 0:04:56.3]} 5. d4 {[%clk 0:04:50.1]}
5... Nd7 {[%clk 0:04:53.9]} 6. Bd3 {[%clk 0:04:48.4]} 6... Nxe5 {[%clk
0:04:52.1]} 7. dxe5 {[%clk 0:04:47]} 7... e6 {[%clk 0:04:49.1]} 8. O-O {[%clk
0:04:44.4]} 8... Bc5 {[%clk 0:04:48.2]} 9. Kh1 {[%clk 0:04:42]} 9... f5 {[%clk
0:04:45.7]} 10. exf6 {[%clk 0:04:39.3]} 10... Nxf6 {[%clk 0:04:44.9]} 11. Nc3
{[%clk 0:04:37.4]} 11... O-O {[%clk 0:04:44]} 12. Bg5 {[%clk 0:04:34.7]} 12...
b5 {[%clk 0:04:40.1]} 13. Qe2 {[%clk 0:04:23.6]} 13... Bd7 {[%clk 0:04:31.2]}
14. Rae1 {[%clk 0:04:17.9]} 14... b4 {[%clk 0:04:29.9]} 15. Nd1 {[%clk
0:04:16.3]} 15... Re8 {[%clk 0:04:25.6]} 16. f4 {[%clk 0:03:49.8]} 16... Qc7
{[%clk 0:04:12.9]} 17. Ne3 {[%clk 0:03:46.4]} 17... Rf8 {[%clk 0:04:01.5]} 18.
f5 {[%clk 0:03:19.8]} 18... Bxe3 {[%clk 0:03:53.9]} 19. Qxe3 {[%clk 0:03:16.8]}
19... exf5 {[%clk 0:03:51.8]} 20. Bxf6 {[%clk 0:02:58.3]} 20... Rxf6 {[%clk
0:03:48]} 21. Qd4 {[%clk 0:02:57.1]} 21... Qd6 {[%clk 0:03:41.1]} 22. Re5 {[%clk
0:02:54.6]} 22... Be6 {[%clk 0:03:33.5]} 23. Rfe1 {[%clk 0:02:50.7]} 23... Bf7
{[%clk 0:03:30.1]} 24. h3 {[%clk 0:02:40.7]} 24... g6 {[%clk 0:03:27.8]} 25. Re7
{[%clk 0:02:15]} 25... a5 {[%clk 0:03:14.2]} 26. Bb5 {[%clk 0:02:06.6]} 26...
Qb6 {[%clk 0:03:11.3]} 27. Qd3 {[%clk 0:01:52.9]} 27... Rd8 {[%clk 0:02:58.6]}
28. a4 {[%clk 0:01:46.4]} 28... Kg7 {[%clk 0:02:47.6]} 29. Be8 {[%clk
0:01:37.4]} 29... Rxe8 {[%clk 0:02:41.3]} 30. Rxe8 {[%clk 0:01:36]} 30... Bxe8
{[%clk 0:02:36.8]} 31. Rxe8 {[%clk 0:01:34.3]} 31... Re6 {[%clk 0:02:30.2]} 32.
Rxe6 {[%clk 0:01:10.8]} 32... Qxe6 {[%clk 0:02:30.1]} 33. Qb5 {[%clk 0:01:09.5]}
33... Qe1+ {[%clk 0:02:27.4]} 34. Kh2 {[%clk 0:01:07.1]} 34... Qe5+ {[%clk
0:02:27.3]} 35. Kh1 {[%clk 0:01:05.1]} 35... Qxb2 {[%clk 0:02:25.7]} 36. Qxd5
{[%clk 0:01:02.8]} 36... Qxc2 {[%clk 0:02:06.1]} 37. Qe5+ {[%clk 0:01:01.8]}
37... Kf7 {[%clk 0:01:58.8]} 38. Qd5+ {[%clk 0:01:00.8]} 38... Kf6 {[%clk
0:01:57.4]} 39. Qd6+ {[%clk 0:00:56.3]} 39... Kg5 {[%clk 0:01:51.3]} 40. Qg3+
{[%clk 0:00:52.5]} 40... Kh5 {[%clk 0:01:50.1]} 41. Qf3+ {[%clk 0:00:50]} 41...
Kh6 {[%clk 0:01:44.8]} 42. Qe3+ {[%clk 0:00:35.8]} 42... g5 {[%clk 0:01:41.1]}
43. Qe6+ {[%clk 0:00:34.2]} 43... Kh5 {[%clk 0:01:35.3]} 44. Qf7+ {[%clk
0:00:15.6]} 44... Kh4 {[%clk 0:01:34.1]} 45. Qxh7+ {[%clk 0:00:14.5]} 45... Kg3
{[%clk 0:01:33.2]} 46. Qc7+ {[%clk 0:00:11.8]} 46... Qxc7 {[%clk 0:01:31.1]} 0-1